Cogmind - Beta 15 @@@ ROGUE MODE // 2025.07.14 @ 21:07:53 Player: jumpy Result: Destroyed by S-27 Virus with Autogun Performance ------------- Evolutions (3) 1500 Regions Visited (6) 1200 Robots Destroyed (37) 185 Value Destroyed (568) 568 Prototype IDs (1) 20 Alien Tech Used (0) 0 Bonus (0) 0 TOTAL SCORE: 3473 Bonus ------- None Cogmind --------- Core Integrity 0/700 Matter 300/300 Energy 99/100 System Corruption 5% Temperature Cool (0) Movement Core (50) Location -7/Storage Parts ------- > --- POWER (1) -------- (None) > --- PROPULSION (5) --- (None) > --- UTILITY (5) ------ Advanced Terrain Scan Processor > --- WEAPON (2) ------- (None) > --- INVENTORY (5) ---- Light Angular Momentum Engine Advanced Targeting Computer Hardened Light Armor Plating Mining Laser Heavy Hammer Peak State ------------ > --- POWER ------------ Cooled Ion Engine > --- PROPULSION ------- Light Treads Light Treads > --- UTILITY ---------- Large Storage Unit Improved Terrain Scanner Advanced Terrain Scan Processor Hardened Light Armor Plating > --- WEAPON ----------- Gauss Cannon Heavy Hammer > --- INVENTORY -------- Light Angular Momentum Engine Improved Hover Unit Advanced Terrain Scan Processor Seismic Detector Advanced Targeting Computer Improved Trap Extractor Rocket Launcher Mining Laser [Rating: 23] Favorites ----------- Power Light Ion Engine Engine Light Ion Engine Propulsion Light Treads Treads Light Treads Hover Unit Airjet Utility Seismic Detector Device Seismic Detector Storage Small Storage Unit Processor Advanced Terrain Scan Processor Protection Hardened Light Armor Plating Weapon Medium Laser Energy Gun Medium Laser Ballistic Gun Assault Rifle Ballistic Cannon Gauss Cannon Launcher Rocket Launcher Impact Weapon Heavy Hammer Slashing Weapon Greatsword Build | -11 -10 -9 -9 -8 -7 -7 ------- Run | Yrd Mat Mat Min Mat Fac Sto Slots Evolved 6 | . . 2 . 2 2 . Power . | . . . . . . . Propulsion 3 | . . 1 . 1 1 . Utility 3 | . . 1 . 1 1 . Weapon . | . . . . . . . Parts Attached 28 | 8 2 7 5 4 1 1 Power 3 | 1 . 2 . . . . Engine 3 | 1 . 2 . . . . Core . | . . . . . . . Reactor . | . . . . . . . Propulsion 6 | 2 . 2 . 2 . . Treads 4 | 2 . 2 . . . . Leg . | . . . . . . . Wheel . | . . . . . . . Hover 2 | . . . . 2 . . Flight . | . . . . . . . Utility 8 | 2 . 1 2 2 1 . Device 4 | 1 . . 1 1 1 . Storage 2 | 1 . 1 . . . . Processor 1 | . . . 1 . . . Hackware . | . . . . . . . Protection 1 | . . . . 1 . . Artifact . | . . . . . . . Weapon 11 | 3 2 2 3 . . 1 Energy Gun 5 | 2 1 1 1 . . . Energy Cannon . | . . . . . . . Ballistic Gun 1 | 1 . . . . . . Ballistic Cannon 1 | . . . 1 . . . Launcher 2 | . 1 . 1 . . . Special Weapon . | . . . . . . . Impact Weapon 1 | . . 1 . . . . Slashing Weapon 1 | . . . . . . 1 Piercing Weapon . | . . . . . . . Special Melee Weapon . | . . . . . . . Unidentified Prototypes 1 | . . 1 . . . . Corrupted Parts 1 | . . . . . 1 . System Corruption 3 | . . . . . 3 . Parts Lost 13 | . . 4 1 6 . 2 Power 1 | . . 1 . . . . Propulsion 6 | . . 2 . 4 . . Utility 4 | . . 1 . 2 . 1 Weapon 2 | . . . 1 . . 1 Highest Loss Streak 6 | . . 2 3 6 . 2 To Critical Strikes . | . . . . . . . Average Backups 6 | 3 7 7 6 7 5 5 Power . | . 1 . 1 . 1 1 Propulsion 1 | 1 2 1 1 1 . . Utility 1 | . 2 2 2 3 2 2 Weapon 1 | . 2 3 2 1 2 2 Tool/Special . | . . . . . . . Unused Backups 9 | 1 . 3 . 2 . 3 Power 1 | . . . . . . 1 Propulsion 3 | 1 . 2 . . . . Utility 3 | . . . . 2 . 1 Weapon 2 | . . 1 . . . 1 Tool/Special . | . . . . . . . Average Slot Usage (%) 77 | . 100 83 83 70 11 12 Engine 9 | . 14 10 11 8 . . Treads 21 | . 28 27 22 14 . . Device 10 | . 14 11 7 13 2 4 Storage 10 | . 14 12 11 7 . . Processor 4 | . . . 8 9 7 7 Energy Gun 9 | . 18 17 3 . . . Ballistic Gun 1 | . 9 . . . . . Ballistic Cannon 2 | . . . 7 7 . . Impact Weapon 5 | . . 4 10 8 1 . Peak Build Rating 23 | 7 8 14 21 23 10 13 Average Rating 11 | 6 7 9 17 19 7 8 On Entrance 8 | . 7 8 12 20 5 8 Naked Turns . | . . . . . . . Heaviest Build 44 | 13 13 40 39 44 4 5 Greatest Support 60 | 40 40 60 40 40 3 3 Greatest Overweight (x) 1 | . . . . 1 1 1 Average Overweight (x) . | . . . . . . . Largest Inventory Capacity 15 | 8 8 15 15 15 5 5 Average Capacity 9 | 7 8 8 15 13 5 5 Most Carried 9 | 6 8 8 8 9 5 5 Average Carried 6 | 3 7 7 6 7 4 5 Final Capacity 15 | 8 8 15 15 5 5 5 Final Carried 8 | 6 8 7 7 5 5 5 Class Distribution -------------------- 92% | Mutant 7% | Scavenger-Mutant Dominant Class ---------------- Mutant | -10/Materials Mutant | -9/Materials Mutant | -9/Mines Scavenger-Mutant | -8/Materials Mutant | -7/Factory Mutant | -7/Storage Resources | -11 -10 -9 -9 -8 -7 -7 ----------- Run | Yrd Mat Mat Min Mat Fac Sto Matter Collected 607 | 343 . 122 95 32 10 5 Remotely . | . . . . . . . Salvage Created 909 | 322 177 280 49 37 26 18 Parts 67 | 25 17 14 5 2 4 . Haulers Intercepted 2 | . . 2 . . . . Recyclers Shooed 2 | 2 . . . . . . Parts Field Recycled . | . . . . . . . Retrieved Matter . | . . . . . . . Parts Self-Destructed . | . . . . . . . Prevented . | . . . . . . . Kills | -11 -10 -9 -9 -8 -7 -7 ------- Run | Yrd Mat Mat Min Mat Fac Sto Combat Hostiles Destroyed 22 | . 7 7 6 1 . 1 Melee 1 | . . . . . . 1 Guns 9 | . 3 6 . . . . Cannons 1 | . . . . 1 . . AOE 6 | . 3 . 3 . . . Classes Destroyed 7 | 3 2 2 . . . . Worker 2 | 2 . . . . . . Tunneler 10 | 9 . . . . 1 . Hauler 2 | . . 2 . . . . Recycler 1 | 1 . . . . . . Swarmer 14 | . 3 4 6 . . 1 Grunt 4 | . 4 . . . . . Sentry 4 | . . 3 . 1 . . Best Kill Streak 5 | 5 4 5 3 1 1 1 Combat Bots Only 5 | . 4 5 3 1 . 1 Max Kills in Single Turn 3 | 1 3 2 2 1 1 1 Gunslinging 1 | . . 1 . . . . Exploded 3 | . 3 . 2 . . . Melee 1 | . . . . . . 1 Uniques/NPCs Destroyed . | . . . . . . . Combat | -11 -10 -9 -9 -8 -7 -7 -------- Run | Yrd Mat Mat Min Mat Fac Sto Hostile Shots Fired 298 | . 25 52 12 73 . 136 Missed 96 | . 6 9 3 19 . 59 Hits 202 | . 19 43 9 54 . 77 Projectile 202 | . 19 43 9 54 . 77 Critical Strikes 2 | . . 2 . . . . Damage Taken 2653 | . 210 555 163 834 . 891 Core 1226 | . 16 131 7 356 . 716 Absorbed by Shields . | . . . . . . . Core Remaining (%) 73 | 100 93 . 65 35 . . Volleys Fired 55 | 21 16 14 2 2 . . Largest 2 | 2 2 2 1 1 . . Hottest 100 | 70 100 100 33 40 . . Shots Fired 96 | 42 30 20 2 2 . . Gun 91 | 42 29 20 . . . . Cannon 2 | . . . . 2 . . Launcher 3 | . 1 . 2 . . . Special . | . . . . . . . Kinetic 37 | 21 14 . . 2 . . Thermal 56 | 21 15 20 . . . . Explosive 3 | . 1 . 2 . . . Electromagnetic . | . . . . . . . Robot Hit Streak 25 | 9 9 21 23 25 . . Robot Miss Streak 9 | 2 1 9 . . . . Penetration Max . | . . . . . . . Secondary Targets 2 | . . 2 . . . . Max Gunslinging Chain 1 | . . 1 . . . . Shots Hit Robots 88 | 25 22 28 5 4 1 3 Core Hits 45 | 13 10 16 3 2 . 1 Critical Kills . | . . . . . . . Critical Parts Destroyed 3 | . . 2 . . 1 . Critical Strikes 7 | 1 2 3 . . 1 . Burn 4 | 1 2 1 . . . . Smash 3 | . . 2 . . 1 . Melee Attacks 27 | . . 12 4 7 1 3 Impact 24 | . . 12 4 7 1 . Slashing 3 | . . . . . . 3 Piercing . | . . . . . . . Sneak Attacks 3 | . . 2 . . 1 . Combat Hostiles . | . . . . . . . Follow-up Attacks . | . . . . . . . Damage Inflicted 2133 | 289 424 719 342 103 82 174 Guns 841 | 289 294 258 . . . . Cannons 60 | . . . . 60 . . Explosions 350 | . 130 . 220 . . . Melee 866 | . . 457 122 39 82 166 Ramming 16 | . . 4 . 4 . 8 Kinetic 330 | 115 155 . . 60 . . Thermal 571 | 174 139 258 . . . . Explosive 350 | . 130 . 220 . . . Electromagnetic . | . . . . . . . Impact 700 | . . 457 122 39 82 . Slashing 166 | . . . . . . 166 Piercing . | . . . . . . . Highest Corruption 5 | . . . . . 3 5 Average Corruption 3 | . . . . . 3 3 Corruption Purged . | . . . . . . . Corruption Blocked . | . . . . . . . Effects 1 | . . . . . . 1 Data Loss (minor) 1 | . . . . . . 1 Overload Shots . | . . . . . . . Overflow Damage 328 | . . 145 67 . 82 34 Projectiles . | . . . . . . . Explosions 25 | . . . 25 . . . Melee 303 | . . 145 42 . 82 34 Knockbacks . | . . . . . . . Impact . | . . . . . . . Kinetic . | . . . . . . . Secondary . | . . . . . . . Self-Inflicted Damage 83 | . . . 77 2 . 4 Shots 2 | . . . 2 . . . Rammed 6 | . . 1 . 2 . 3 Targets Rammed 6 | . . 1 . 2 . 3 Kicked . | . . . . . . . Crushed . | . . . . . . . Highest Temperature 168 | 36 162 168 . 1 . . Average Temperature 41 | 10 66 57 . 1 . . Received Heat Transfer 798 | . 84 195 . 441 . 78 Siege Activations . | . . . . . . . Martial Activations . | . . . . . . . Shielding Activations . | . . . . . . . Robots Disrupted . | . . . . . . . Combat Hostiles . | . . . . . . . Robots Corrupted 6 | . . 3 3 . . . Combat Hostiles 4 | . . 1 3 . . . Parts Fried 9 | . . 4 5 . . . Impact Corruptions 9 | . . 5 3 . 1 . Robots Melted 1 | . 1 . . . . . Combat Hostiles 1 | . 1 . . . . . Parts Melted 5 | . 1 4 . . . . Heat Transferred 1756 | 592 555 609 . . . . Parts Sabotaged . | . . . . . . . Parts Stolen . | . . . . . . . Parts Stripped . | . . . . . . . Power Chain Reactions . | . . . . . . . Alert | -11 -10 -9 -9 -8 -7 -7 ------- Run | Yrd Mat Mat Min Mat Fac Sto Maximum Alert Level . | . . . . . . . Low Security (%) 100 | 100 100 100 100 100 100 100 Level 1 . | . . . . . . . Level 2 . | . . . . . . . Level 3 . | . . . . . . . Level 4 . | . . . . . . . Level 5 . | . . . . . . . High Security . | . . . . . . . Max Security . | . . . . . . . Peak Influence 146 | 10 146 120 74 30 5 20 Initial 44 | . . 44 . 19 . . Average 26 | 1 67 45 28 7 . 1 Influence Increases 646 | 60 176 199 154 32 5 20 Destroy 0b10 Robot/C 440 | . 140 140 120 20 . 20 Destroy 0b10 Robot/NC 75 | 60 . 10 . . 5 . Destroy Leader 104 | . 30 44 20 10 . . Successful Hack 5 | . . 5 . . . . Destroy Structure 22 | . 6 . 14 2 . . Influence Decreases 636 | 60 70 305 104 82 5 10 Entered New Map 93 | . . 62 . 31 . . Time Decay 481 | 60 70 213 94 39 5 . Lost Part 62 | . . 30 10 12 . 10 Squads Dispatched 6 | . 2 . . 2 . 2 Investigation 1 | . . . . . . 1 Extermination . | . . . . . . . Reinforcement 5 | . 2 . . 2 . 1 Assault . | . . . . . . . Garrison . | . . . . . . . Intercept . | . . . . . . . Searches Triggered . | . . . . . . . Construction Impeded . | . . . . . . . Haulers Reinforced 1 | . . . . . . 1 Active Scanning Responses . | . . . . . . . Cargo Convoy Interrupts . | . . . . . . . Stealth | -11 -10 -9 -9 -8 -7 -7 --------- Run | Yrd Mat Mat Min Mat Fac Sto Distress Signals 6 | . 2 2 . 2 . . Communications Jammed . | . . . . . . . Distress Signals . | . . . . . . . Times Spotted 51 | . 11 13 6 14 . 7 Peak Tracking Total 11 | . 5 4 3 11 . 9 Tactical Retreats . | . . . . . . . Traps | -11 -10 -9 -9 -8 -7 -7 ------- Run | Yrd Mat Mat Min Mat Fac Sto Traps Triggered 1 | . . . 1 . . . Indirectly . | . . . . . . . Trap Hack Attempts . | . . . . . . . Triggered . | . . . . . . . Disarmed . | . . . . . . . Reprogrammed . | . . . . . . . Reused . | . . . . . . . Traps Extracted . | . . . . . . . Installed . | . . . . . . . Triggered . | . . . . . . . Machines | -11 -10 -9 -9 -8 -7 -7 ---------- Run | Yrd Mat Mat Min Mat Fac Sto Machines Disabled . | . . . . . . . Max in Single Turn . | . . . . . . . Machines Repaired . | . . . . . . . Machines Dismantled . | . . . . . . . Machines Sabotaged . | . . . . . . . Overloaded Fab Kills . | . . . . . . . Hacking | -11 -10 -9 -9 -8 -7 -7 --------- Run | Yrd Mat Mat Min Mat Fac Sto Machines Accessed 3 | . . 1 1 . . 1 Terminals 2 | . . 1 . . . 1 Fabricators . | . . . . . . . Repair Stations . | . . . . . . . Recycling Units . | . . . . . . . Scanalyzers . | . . . . . . . Garrison Access . | . . . . . . . Total Hacks 8 | . . 4 1 . . 3 Successful 2 | . . 1 1 . . . Failed 6 | . . 3 . . . 3 Catastrophic 1 | . . . . . . 1 Database Lockouts . | . . . . . . . Manual 4 | . . 4 . . . . Terminals 7 | . . 4 . . . 3 Fabricators . | . . . . . . . Repair Stations . | . . . . . . . Recycling Units . | . . . . . . . Scanalyzers . | . . . . . . . Garrison Access . | . . . . . . . Terminal Hacks 1 | . . . 1 . . . Open Door 1 | . . . 1 . . . Fabricator Hacks . | . . . . . . . Repair Station Hacks . | . . . . . . . Recycling Unit Hacks . | . . . . . . . Scanalyzer . | . . . . . . . Garrison Access Hacks . | . . . . . . . Unauthorized Hacks 1 | . . 1 . . . . Terminals 1 | . . 1 . . . . Botnet 1 | . . 1 . . . . Fabricators . | . . . . . . . Repair Stations . | . . . . . . . Recycling Units . | . . . . . . . Scanalyzers . | . . . . . . . Garrison Access . | . . . . . . . Data Cores Recovered . | . . . . . . . Used . | . . . . . . . Hacking Detections 2 | . . 1 . . . 1 Full Trace Events 1 | . . . . . . 1 Feedback Events . | . . . . . . . Feedback Blocked . | . . . . . . . Robot Schematics Acquired . | . . . . . . . Robots Built . | . . . . . . . Authchips . | . . . . . . . Time . | . . . . . . . Total Robot Build Rating . | . . . . . . . Part Schematics Acquired . | . . . . . . . Parts Built . | . . . . . . . Authchips . | . . . . . . . Time . | . . . . . . . Total Part Build Rating . | . . . . . . . Parts Repaired . | . . . . . . . Time . | . . . . . . . Parts Recycled . | . . . . . . . Recycled Matter . | . . . . . . . Retrieved Matter . | . . . . . . . Retrieved Components . | . . . . . . . Parts Scanalyzed . | . . . . . . . Part Schematics Acquired . | . . . . . . . Parts Damaged . | . . . . . . . Bothacking | -11 -10 -9 -9 -8 -7 -7 ------------ Run | Yrd Mat Mat Min Mat Fac Sto Used RIF Installer . | . . . . . . . Robots Hacked . | . . . . . . . Non-combat . | . . . . . . . Combat . | . . . . . . . Robot Hacks Applied . | . . . . . . . Relay Couplers Released . | . . . . . . . Fabnet Peak Effective % . | . . . . . . . Robots Rewired . | . . . . . . . Allies Hacked . | . . . . . . . Hacks Repelled . | . . . . . . . Allies | -11 -10 -9 -9 -8 -7 -7 -------- Run | Yrd Mat Mat Min Mat Fac Sto Total Allies . | . . . . . . . Largest Group . | . . . . . . . Highest-Rated Group . | . . . . . . . Highest-Rated Ally . | . . . . . . . Total Orders . | . . . . . . . Ally Attacks . | . . . . . . . Total Damage . | . . . . . . . Kills . | . . . . . . . Allies Corrupted . | . . . . . . . Allies Melted . | . . . . . . . Intel | -11 -10 -9 -9 -8 -7 -7 ------- Run | Yrd Mat Mat Min Mat Fac Sto Active Infowar (turns) 1373 | 288 183 447 218 182 24 31 Terrain 455 | . . . 218 182 24 31 Seismic 1045 | 288 183 447 . 127 . . Robot Analysis Total . | . . . . . . . Derelict Logs Recovered 3 | . . . 3 . . . Drone Launches . | . . . . . . . Drone Recoveries . | . . . . . . . Exploration | -11 -10 -9 -9 -8 -7 -7 ------------- Run | Yrd Mat Mat Min Mat Fac Sto Turns Passed 1604 | 391 183 453 281 197 42 57 Spaces Moved 942 | 196 82 229 156 126 70 83 Core 187 | 4 . . . 30 70 83 Treads 736 | 192 82 229 156 77 . . Legs . | . . . . . . . Wheels . | . . . . . . . Hover 19 | . . . . 19 . . Flight . | . . . . . . . Fastest Speed 50 | 50 160 160 160 50 50 50 Average Speed 137 | 157 160 160 160 129 52 51 Slowest Speed 240 | 160 160 160 160 240 100 100 Overloaded Moves . | . . . . . . . Propulsion Burnouts . | . . . . . . . Robots Hopped . | . . . . . . . Potential Cave-ins 2 | . . . . 2 . . Cave-ins Triggered . | . . . . . . . Exploration Rate (%) 23 | 11 27 34 40 25 3 21 Regions Visited 6 Branch Regions 2 Pre-discovered Areas 1 | . . . 1 . . . Known Exits Taken 1 | . . . 1 . . . Unknown Exits Taken 5 | 1 1 1 . 1 1 . Scrap Searched 1 | . . . 1 . . . Spaces Dug 4 | . . . . 4 . . Terrain Destroyed 26 | . 6 . 16 4 . . Melee 4 | . . . . 4 . . Projectile . | . . . . . . . AOE 22 | . 6 . 16 . . . Terrain Rammed . | . . . . . . . Walls Destroyed . | . . . . . . . Machines Disabled . | . . . . . . . Actions | -11 -10 -9 -9 -8 -7 -7 --------- Run | Yrd Mat Mat Min Mat Fac Sto Total 1101 | 233 102 277 178 148 73 90 Wait 9 | . . 5 4 . . . Move 938 | 195 81 229 155 126 69 83 Hop . | . . . . . . . Pick Up 20 | 7 2 5 3 3 . . Fast Attach 15 | 8 . 2 2 1 1 1 Attach 9 | . . 2 3 3 1 . Detach 4 | . . . 1 2 1 . Swap 8 | . 3 3 2 . . . Drop 12 | 2 . 5 2 3 . . Fire 55 | 21 16 14 2 2 . . Melee 27 | . . 12 4 7 1 3 Ram 4 | . . . . 1 . 3 Kick . | . . . . . . . Crush . | . . . . . . . Escape Stasis . | . . . . . . . Rewire . | . . . . . . . Trap . | . . . . . . . Miscellaneous . | . . . . . . . Route ------- -11/Scrapyard -10/Materials -9/Materials -9/Mines (discovered 2 exits: *Mat x2) -8/Materials -7/Factory -7/Storage History --------- Turn | Location | Event 22 | -11/Scrapyard | Discovered new exit (range 16) 392 | -11/Scrapyard | Entered Materials 393 | -10/Materials | Build established: Mutant 559 | -10/Materials | Discovered new exit (range 10) 575 | -10/Materials | Entered another Materials area 575 | -9/Materials | Evolved 2 slots: Propulsion x1, Utility x1 1018 | -9/Materials | Discovered new exit (range 3) 1028 | -9/Materials | Entered Mines 1054 | -9/Mines | Met a Derelict bent on vengeance 1061 | -9/Mines | Lost 3 parts (1n1u1w) 1080 | -9/Mines | Met a Derelict who couldn't figure out how to use a Trap Extractor 1185 | -9/Mines | Identified exit to Materials 1220 | -9/Mines | Learned Materials garrison access intel 1227 | -9/Mines | Learned location of Zion (-7) 1287 | -9/Mines | Discovered exit to Materials (range 8) 1309 | -9/Mines | Entered Materials 1309 | -8/Materials | Evolved 2 slots: Propulsion x1, Utility x1 1310 | -8/Materials | Loaded intel: 1 garrison access location 1489 | -8/Materials | Core integrity fell below 50% 1501 | -8/Materials | Discovered new exit (range 9) 1506 | -8/Materials | Entered Factory 1506 | -7/Factory | Evolved 2 slots: Propulsion x1, Utility x1 1522 | -7/Factory | Lost 6 parts (4n2u) 1541 | -7/Factory | Discovered new exit (range 4) 1548 | -7/Factory | Entered Storage 1580 | -7/Storage | Core integrity fell below 50% 1600 | -7/Storage | Core integrity fell below 20% 1605 | -7/Storage | Destroyed by S-27 Virus with Autogun Last Messages --------------- 01550_ Connecting with Door Terminal... 01550_ Current location identified: Storage 01550_ ALERT: Suspicious activity at Terminal S009. Dispatching Investigation squad. 01578_ Slammed into A-02 Transporter. 01578_ A-02 Transporter calls for reinforcements. 01578_ ALERT: Hostile activity reported, dispatching reinforcements to area. 01579_ Slammed into A-02 Transporter. 01579_ Imp. Terrain Scanner destroyed. 01579_ System corrupted by crushing effect (+2). 01588_ Acquired Greatsword. 01592_ Destroyed VTOL Module. 01593_ S-27 Virus destroyed. 01595_ R-06 Scavenger collects VTOL Module. 01598_ System corrupted: Component data lost. 01598_ S-27 Virus destroyed. 01599_ Greatsword destroyed. 01601_ Acquired 5 matter. 01602_ Slammed into S-27 Virus. Map ----- +----------------------------------------------------+ | ???????????????????????????? ?????? ?????????????? | | ???????????????????????#??????#???#??????#???????? | | ??????????????????????#??????????????#????? ????? | | ??????????????????????? ?????????? ?#? ?"???? ?? | | ????????????????????? ??????? ??????#?????R??????? | | ?????????????????#?????????? ?? ?????##??????????? | | ??????????????????????? ???? ???? ?????? ? ??????? | | ????????????????????"???????? ?? #???????????"? | | ???????????????? ????"?????? ???? ???????? ? ??## | | ???????????????????????????#???? ????## ????????? | | ????????????????????? ????#???? ????#???#?#??#??#? | | ?????????????? ??? ""? ???##########??#???????##?# | | ??????????????????????? #?# #????#??#?##### | | ????????????? ????????? ??# ########### | | ???????????????#????????#?# """ # | | ?????????????????????##???# "?"""" / | | ??????????????????????????# " ???" # | | ???????????????????????"?## " ???" #####/##### | | ????????????????#??#??????# """"?" #??? ???#?## | | ????????????????? ?#??????# """ #?#???##???# | | ??????????????????????????# #?????###??# | | ??????????????????????????#+##########?? ?#?#?# | | ??????????????????????????# ## #??????#??# | | ???????????? ??????#??????#%## """ ##??#???#?# | | ????????????????# ##+##### ## """ ##""??#???# | | ????????????????# @ r#% """ ##"Y"?#??## | | ????????????????# Y ss ##" "###### | | ????????????? ?#/###+########% !/ # ## | | ?????????????????????????????# !// # """ # | | ?????????????????????????????# !/! # """ # | | ????????????????+??????"?????# # """ + " | | ?????????????????????????????# " " # # | | ?????????????????????????????# "T" # """ # | | ?????????????????? ?? ? ????# """ # """ ##### | | ?????????????????? ?????????## # """ #?##? | | ?????????????????????????????# ###### ##??? | | ?????????????????????????????###????# #######?#??? | | ???????????????????????????????????????##?#?#????? | | | | | | | | | | | | | | | | | | | | | | | | | +----------------------------------------------------+ Best States ------------- Heat Dissipation 34 Energy Generation 14 Energy Capacity 280 Matter Stores 300 Matter Capacity 300 Sight Range 16 Terrain Scan Range 16 Terrain Scan Density 210 Armor Coverage 150 Evasion (%) 53 Recoil Reduction 3 Item Schematics ----------------- None Robot Schematics ------------------ None Fabricated ------------ Nothing Repaired ---------- Nothing Alien Tech Used ----------------- None Achievements -------------- None Challenges ------------ None Game ------ Seed ElectronLaserDatajack Manual? 0 Play Time 00:11:07 Cumulative 158.5 hours Start 2025.07.14 @ 20:53:38 End 2025.07.14 @ 21:07:53 Sessions 1 Manual Loads 0 Difficulty Rogue Special Mode None Game No. 396 Rogue 396 Adventurer 0 Explorer 0 Win Type - Total 6 Types 5/0/1/0/0/0/0/0/0/0 Lore% 69 Gallery% 61 Achievement% 48 Wizard Run 0 Options --------- Layout 0 ASCII 0 Keyboard 0 Movement Numpad Keybinds 0 Fullscreen 2 Font 18/Terminus Map View 76x50 Zoom Use 0% Tactical HUD 1 Map Filters NONE Filters NONE Steam 1 RUN: cf7fe153-6a41-4c6b-be58-c7cc77fb5388